bitfinex/quotes_SOLUSD_20250822
["timestamp","ask_amount","ask_price","bid_price","bid_amount"]
[1755881225564,70.10288052,196.0,195.99,0.03]
[1755881225764,54.91288052,196.0,195.99,0.03]
[1755881225969,87.48613648,196.0,195.99,0.03]
[1755881226167,45.58613648,196.0,195.99,0.03]
[1755881226356,88.19613648,196.0,195.99,0.03]
[1755881226558,96.81288052,196.0,195.99,0.03]
[1755881228461,96.81288052,196.0,195.98,0.1]
[1755881228462,13.87991715,195.99,195.98,0.1]
[1755881228758,39.87991715,195.96,195.95,0.03]
[1755881228971,87.48613648,195.96,195.95,0.03]
[1755881229171,96.10288052,195.96,195.95,0.03]
[1755881229472,73.89054247,195.96,195.95,0.03]
[1755881229679,82.50728651,195.96,195.95,0.03]
[1755881229883,56.50728651,195.96,195.95,0.03]
[1755881230075,12.42086996,195.96,195.95,0.03]
[1755881230289,8.61674404,196.0,195.96,9.0356]
[1755881230487,10.52122193,196.01,195.99,9.0356]
[1755881230786,45.69710815,196.0,195.99,9.7456]
[1755881230993,45.69710815,196.0,195.99,9.0356]
[1755881231175,54.31385219,196.0,195.99,9.0356]
[1755881231480,0.28432314,195.99,195.97,9.0356]
[1755881231698,50.49674404,195.98,195.96,9.0356]
[1755881231858,50.49674404,195.98,195.95,0.03]
[1755881231859,0.28432314,195.96,195.95,0.03]
[1755881232191,54.59861704,195.96,195.95,0.03]
[1755881232366,51.46234926,195.96,195.95,0.03]
[1755881232568,67.66701346,195.96,195.95,0.03]
[1755881232972,70.32115028,195.96,195.95,0.03]
[1755881233593,70.32115028,195.96,195.91,0.1]
[1755881233594,39.87991715,195.92,195.91,0.1]
[1755881233805,0.28432314,195.91,195.86,8.95873043]
[1755881233962,5.47996668,195.87,195.86,8.95873043]
[1755881234161,51.15802612,195.87,195.86,0.1]
[1755881234383,51.15802612,195.87,195.86,8.95873043]
[1755881234664,51.44234926,195.87,195.86,9.66873043]
[1755881235197,4.08238258,195.87,195.86,8.95873043]
[1755881235493,45.96238258,195.87,195.86,8.95873043]
[1755881235780,51.44234926,195.87,195.86,8.95873043]
[1755881236170,51.44234926,195.87,195.86,9.66873043]
[1755881236171,4.08238258,195.87,195.86,9.66873043]
[1755881236489,4.08238258,195.87,195.86,8.95873043]
[1755881236490,50.80554196,195.87,195.86,8.95873043]
[1755881236695,54.6036014,195.87,195.86,8.95873043]
[1755881237068,12.7236014,195.87,195.86,8.95873043]
[1755881237270,54.6036014,195.87,195.86,8.95873043]
[1755881237812,54.6036014,195.87,195.86,0.1]
[1755881237813,68.89919541,195.87,195.86,0.1]
[1755881237965,70.79859731,195.87,195.86,0.1]
[1755881240277,68.89923994,195.87,195.86,0.1]
[1755881240478,70.79829192,195.87,195.86,0.1]
[1755881240793,61.17274996,195.87,195.86,0.1]
[1755881241097,67.9149168,195.87,195.86,0.1]
[1755881241399,80.31932279,195.87,195.86,0.1]
[1755881241593,80.60364593,195.87,195.86,0.1]
[1755881241764,94.05707837,195.87,195.86,0.1]
[1755881241963,96.65483175,195.87,195.86,0.1]
[1755881242164,96.79699332,195.87,195.86,0.1]
[1755881243301,96.79415428,195.87,195.86,0.1]
[1755881243506,96.79415428,195.87,195.72,0.7]
[1755881243507,26.0,195.8,195.72,0.7]
[1755881243678,45.67526493,195.79,195.75,0.7]
[1755881243882,45.67526493,195.79,195.76,0.7]
[1755881243883,8.92554196,195.77,195.76,0.7]
[1755881244066,54.60002872,195.77,195.76,0.7]
[1755881244272,50.80554196,195.77,195.76,0.7]
[1755881244481,45.67248052,195.77,195.76,0.7]
[1755881244693,8.78338039,195.81,195.78,6.99163234]
[1755881244998,0.28432314,195.78,195.77,6.99163234]
[1755881245209,54.59789421,195.78,195.75,6.99163234]
[1755881245377,4.07667539,195.77,195.76,7.69163234]
[1755881245695,8.64121882,195.77,195.76,0.7]
[1755881245898,12.71646176,195.77,195.76,7.69163234]
[1755881246075,0.28432314,195.76,195.73,6.99163234]
[1755881246275,8.92554196,195.74,195.71,6.99163234]
[1755881246486,0.28432314,195.72,195.7,6.99163234]
[1755881246685,41.88,195.71,195.7,7.69163234]
[1755881247681,50.52121882,195.71,195.69,6.99163234]
[1755881247891,50.52121882,195.71,195.7,7.69163234]
[1755881248195,50.52121882,195.71,195.7,0.7]
[1755881248401,41.88,195.71,195.7,0.7]
[1755881248594,50.52121882,195.71,195.7,0.7]
[1755881248795,41.88,195.71,195.7,0.7]
[1755881249184,41.88,195.71,195.7,7.69163234]
[1755881249395,50.52121882,195.71,195.7,7.69163234]
[1755881249989,41.88,195.71,195.7,0.7]
[1755881250212,41.88,195.71,195.7,7.69163234]
[1755881250593,41.88,195.71,195.7,0.7]
[1755881251106,41.88,195.71,195.69,6.99163234]
[1755881251477,41.88,195.71,195.7,7.69163234]
[1755881251897,41.88,195.71,195.7,0.7]
[1755881252084,41.88,195.71,195.7,7.69163234]
[1755881252280,41.88,195.71,195.57,15.0380049]
[1755881252281,51.50554196,195.71,195.67,6.99163234]
[1755881252480,8.92554196,195.68,195.66,6.99163234]
[1755881252714,41.86,195.67,195.66,6.99163234]
[1755881253003,50.50121882,195.67,195.65,6.99163234]
[1755881253210,50.50121882,195.67,195.53,93.858231]
[1755881253211,0.28432314,195.65,195.63,6.99163234]
[1755881253397,50.52121882,195.64,195.63,6.99163234]
[1755881253780,41.88,195.64,195.63,7.69163234]
[1755881255200,0.28432314,195.69,195.68,6.99163234]
[1755881255385,50.78554196,195.69,195.68,6.99163234]
[1755881255581,50.78554196,195.69,195.65,6.99163234]
[1755881255812,8.64121882,195.66,195.65,6.99163234]
[1755881255997,50.80554196,195.66,195.65,6.99163234]
[1755881256193,8.33069766,195.7,195.68,6.99163234]
[1755881256393,47.65736156,195.69,195.68,6.99163234]
[1755881256810,42.16432314,195.69,195.68,6.99163234]
[1755881257119,48.35736156,195.69,195.67,6.99163234]
[1755881257298,6.47736156,195.68,195.67,6.99163234]
[1755881257492,5.77736156,195.68,195.67,6.99163234]
[1755881257720,8.4326859,195.68,195.67,6.99163234]
[1755881258091,8.4326859,195.68,195.65,6.99163234]
[1755881258092,0.28432314,195.67,195.65,6.99163234]
[1755881258314,47.65736156,195.66,195.65,6.99163234]
[1755881259386,41.88,195.66,195.65,7.69163234]
[1755881260025,2.65532434,195.68,195.67,6.99163234]
[1755881260192,44.51532434,195.68,195.67,6.99163234]
[1755881260523,50.2926859,195.68,195.67,6.99163234]
[1755881260824,44.53532434,195.68,195.67,7.69163234]
[1755881261027,50.02836276,195.68,195.67,6.99163234]
[1755881261319,50.3126859,195.68,195.67,6.99163234]
[1755881262312,44.81964748,195.68,195.67,6.99163234]
[1755881262615,50.3126859,195.68,195.67,6.99163234]
[1755881262816,0.28432314,195.67,195.65,6.99163234]
[1755881263014,47.35303842,195.66,195.65,6.99163234]
[1755881263610,47.63736156,195.66,195.65,6.99163234]
[1755881263920,0.28432314,195.65,195.64,6.99163234]
[1755881264133,5.77736156,195.65,195.64,6.99163234]
[1755881264715,6.47736156,195.65,195.64,6.99163234]
[1755881264928,6.47736156,195.65,195.63,0.03]
[1755881265100,6.47736156,195.65,195.63,7.02163234]
[1755881265101,47.63736156,195.64,195.63,7.02163234]
[1755881265594,42.14432314,195.64,195.63,7.02163234]
[1755881265794,42.14432314,195.64,195.63,7.72163234]
[1755881266124,47.63736156,195.64,195.63,7.02163234]
[1755881267226,48.33736156,195.64,195.63,7.02163234]
[1755881268113,48.33736156,195.64,195.63,0.03]
[1755881268395,42.14432314,195.64,195.63,0.03]
[1755881268610,68.14432314,195.64,195.63,0.03]
[1755881268817,42.14432314,195.64,195.63,7.02163234]
[1755881269023,5.77736156,195.64,195.63,7.02163234]
[1755881269228,47.63736156,195.64,195.63,7.02163234]
[1755881269596,0.28432314,195.64,195.63,7.67163234]
[1755881269827,42.14432314,195.64,195.63,7.67163234]
[1755881270000,8.14836276,195.68,195.66,6.99163234]
[1755881270194,41.86,195.67,195.66,6.99163234]
[1755881270393,42.00216157,195.67,195.66,6.99163234]
[1755881270590,0.14216157,195.66,195.65,6.99163234]
[1755881270906,2.65532434,195.68,195.67,6.99163234]
[1755881271216,44.51532434,195.68,195.67,6.99163234]
[1755881271614,44.65748591,195.68,195.67,6.99163234]
[1755881271810,44.79964748,195.68,195.67,6.99163234]
[1755881272025,50.2926859,195.68,195.67,6.99163234]
[1755881272324,50.2926859,195.68,195.66,6.99163234]
[1755881272325,0.28432314,195.67,195.66,6.99163234]
[1755881272513,5.77736156,195.67,195.66,6.99163234]
[1755881273225,44.51532434,195.68,195.66,6.99163234]
[1755881273226,2.65532434,195.68,195.67,6.99163234]
[1755881273425,44.51532434,195.68,195.67,7.64163234]
[1755881274909,44.49532434,195.68,195.67,7.64163234]
[1755881275416,2.65532434,195.68,195.67,7.64163234]
[1755881275609,44.49532434,195.68,195.67,7.64163234]
[1755881276829,44.49532434,195.68,195.67,6.99163234]
[1755881277520,49.98836276,195.68,195.67,6.99163234]
[1755881277903,44.49532434,195.68,195.67,6.99163234]
[1755881278099,44.49532434,195.68,195.67,7.64163234]
[1755881278316,44.49532434,195.68,195.67,6.99163234]
[1755881279527,49.98836276,195.68,195.67,6.99163234]
[1755881280000,50.2726859,195.68,195.67,6.99163234]
[1755881280207,0.28432314,195.67,195.66,6.99163234]
[1755881280504,2.65532434,195.68,195.67,6.99163234]
[1755881280699,76.9326859,195.68,195.64,6.99163234]
[1755881280923,76.9326859,195.68,195.63,0.03]
[1755881280924,5.49303842,195.65,195.63,0.03]
[1755881281133,47.59736156,195.64,195.63,7.02163234]
[1755881281330,51.40065614,195.64,195.63,7.02163234]
[1755881281542,42.10432314,195.64,195.63,7.02163234]
[1755881281719,2.65559786,195.64,195.63,13.16467076]
[1755881281904,44.47559786,195.64,195.63,13.16467076]
[1755881282103,49.96863628,195.64,195.63,7.02163234]
[1755881282514,50.93295942,195.64,195.63,0.03]
[1755881282755,54.73912447,195.64,195.63,0.03]
[1755881283109,9.11295942,195.64,195.63,0.03]
[1755881283309,70.24078261,195.64,195.63,0.03]
[1755881283817,39.59559401,195.6,195.59,0.03]
[1755881284023,92.90518475,195.6,195.59,0.03]
[1755881284231,93.58518475,195.6,195.59,0.03]
[1755881284534,31.99655232,195.6,195.59,0.03]
[1755881284723,79.30959074,195.6,195.59,0.03]
[1755881284923,79.30937937,195.6,195.59,0.03]
[1755881285126,4.09247593,195.6,195.59,0.68]
[1755881285328,73.59736156,195.6,195.59,0.03]
[1755881285638,79.99009519,195.6,195.59,0.03]
[1755881285943,79.31009519,195.6,195.59,0.03]
[1755881286331,77.40589045,195.6,195.59,0.03]
[1755881286660,71.91285203,195.6,195.59,0.03]
[1755881287017,77.40589045,195.6,195.59,0.03]
[1755881287217,71.91285203,195.6,195.59,0.03]
[1755881287448,79.31187522,195.6,195.59,0.03]
[1755881288143,79.99187522,195.6,195.59,0.03]
[1755881289020,67.58746923,195.6,195.59,0.03]
[1755881290465,26.0,195.57,195.52,6.99163234]
[1755881290626,0.28432314,195.59,195.52,6.99163234]
[1755881290627,31.77736156,195.53,195.52,6.99163234]
[1755881290824,71.91285203,195.53,195.52,6.99163234]
[1755881291133,77.40589045,195.53,195.52,7.64163234]
[1755881291320,5.49303842,195.55,195.54,6.99163234]
[1755881291525,51.1245897,195.55,195.54,7.64163234]
[1755881291938,51.12585907,195.55,195.54,6.99163234]
[1755881292127,51.12585907,195.55,195.51,0.65]
[1755881292128,47.59736156,195.55,195.51,0.65]
[1755881292330,5.49303842,195.52,195.51,6.99163234]
[1755881292523,47.31303842,195.52,195.51,6.99163234]
[1755881292749,47.31303842,195.52,195.5,7.09163234]
[1755881292927,47.31303842,195.52,195.51,6.99163234]
[1755881293129,47.59736156,195.52,195.5,7.09163234]
[1755881293325,5.77736156,195.51,195.5,0.1]
[1755881293745,5.77736156,195.51,195.5,7.09163234]
[1755881293960,25.76511491,195.51,195.5,0.1]
[1755881294124,26.0,195.48,195.45,6.99163234]
[1755881294443,5.77736156,195.46,195.45,6.99163234]
[1755881294949,47.31303842,195.46,195.45,7.64163234]
[1755881295151,61.19295557,195.46,195.45,6.99163234]
[1755881295475,51.40053905,195.46,195.43,6.99163234]
[1755881295671,51.40053905,195.46,195.41,6.99163234]
[1755881295672,0.28432314,195.43,195.41,6.99163234]
[1755881295861,3.80317749,195.43,195.42,7.64163234]
[1755881296173,5.49303842,195.46,195.45,6.99163234]
[1755881296379,219.0,195.51,195.45,6.99163234]
[1755881296380,219.0,195.51,195.5,6.99163234]
[1755881296525,264.62317173,195.51,195.5,6.99163234]
[1755881296856,270.11621015,195.51,195.5,6.99163234]
[1755881297025,270.25837172,195.51,195.5,6.99163234]
[1755881297226,270.25837172,195.51,195.45,0.65]
[1755881297227,0.14216157,195.5,195.49,6.99163234]
[1755881297536,9.58053329,195.5,195.48,6.99163234]
[1755881297734,51.11621015,195.49,195.48,6.99163234]
[1755881298359,54.29811112,195.49,195.48,6.99163234]
[1755881298728,54.94811112,195.49,195.46,6.99163234]
[1755881298927,54.94811112,195.49,195.43,0.66]
[1755881298928,8.95926253,195.47,195.45,6.99163234]
[1755881299152,54.58243426,195.46,195.45,6.99163234]
[1755881299527,54.58243426,195.46,195.45,7.65163234]
[1755881299528,45.62317173,195.46,195.45,7.65163234]
[1755881299733,54.29811112,195.46,195.45,6.99163234]
[1755881299955,50.77926253,195.46,195.45,6.99163234]
[1755881300143,54.57457544,195.46,195.45,6.99163234]
[1755881300341,0.28432314,195.45,195.44,6.99163234]
[1755881300656,12.75457544,195.45,195.44,6.99163234]
[1755881300850,4.07963605,195.45,195.44,6.99163234]
[1755881301046,0.65,195.48,195.46,6.99163234]
[1755881301047,0.28432314,195.47,195.46,6.99163234]
[1755881301232,54.5918491,195.47,195.46,7.65163234]
[1755881301434,54.5918491,195.47,195.46,6.99163234]
[1755881301936,48.57333376,195.47,195.46,6.99163234]
[1755881302138,57.24827315,195.47,195.46,6.99163234]
[1755881302532,57.24827315,195.47,195.46,7.65163234]
[1755881302533,6.44901062,195.47,195.46,7.65163234]
[1755881302731,53.15136344,195.47,195.46,6.99163234]
[1755881303460,53.43568658,195.47,195.46,6.99163234]
[1755881303942,57.22237869,195.47,195.46,6.99163234]
[1755881304662,0.28432314,195.46,195.45,6.99163234]
[1755881304959,8.95926253,195.46,195.45,6.99163234]
[1755881305778,8.95926253,195.46,195.45,7.65163234]
[1755881305934,0.28432314,195.46,195.45,6.99163234]
[1755881306262,8.95926253,195.46,195.45,6.99163234]
[1755881306633,12.74405977,195.46,195.44,0.03]
[1755881306969,94.15965378,195.45,195.44,0.03]
[1755881307147,94.80965378,195.45,195.44,0.03]
[1755881307346,94.80965378,195.45,195.41,6.99163234]
[1755881307347,1.25155837,195.42,195.41,6.99163234]
[1755881307542,1.25155837,195.42,195.39,0.60290191]
[1755881307543,0.28432314,195.41,195.4,0.03]
[1755881307750,8.95926253,195.41,195.4,7.68163234]
[1755881307942,9.60926253,195.41,195.4,0.03]
[1755881308144,35.66003854,195.41,195.39,0.60290191]
[1755881308344,26.14216157,195.36,195.34,7.09163234]
[1755881308564,50.77926253,195.35,195.34,7.09163234]
[1755881309074,42.10432314,195.35,195.34,7.09163234]
[1755881309363,50.77926253,195.35,195.34,7.09163234]
[1755881311439,42.10432314,195.35,195.34,7.09163234]
[1755881311659,39.94,195.46,195.36,6.99163234]
[1755881311859,39.94,195.46,195.38,6.99163234]
[1755881311860,45.58924746,195.41,195.38,6.99163234]
[1755881312046,3.76924746,195.4,195.36,6.99163234]
[1755881312355,41.82,195.39,195.38,6.99163234]
[1755881312741,41.82,195.39,195.36,6.99163234]
[1755881313057,41.82,195.39,195.38,6.99163234]
[1755881313233,41.82,195.39,195.36,6.99163234]
[1755881313437,0.28432314,195.38,195.35,6.99163234]
[1755881313649,41.84,195.37,195.35,6.99163234]
[1755881313849,42.12432314,195.37,195.36,6.99163234]
[1755881314248,42.12432314,195.37,195.34,0.1]
[1755881314249,0.28432314,195.36,195.34,0.1]
[1755881314537,50.51493939,195.35,195.34,0.1]
[1755881316044,54.27880214,195.35,195.34,0.1]
[1755881316339,54.92791539,195.35,195.34,0.1]
[1755881316554,54.92778045,195.35,195.34,0.1]
[1755881316759,54.92778045,195.35,195.34,7.09163234]
[1755881316971,54.92778045,195.35,195.34,0.1]
[1755881317267,26.0,195.32,195.3,6.99163234]
[1755881317475,50.51493939,195.31,195.28,6.99163234]
[1755881317673,8.67493939,195.29,195.28,6.99163234]
[1755881317851,50.51493939,195.29,195.28,6.99163234]
[1755881318162,0.65,195.38,195.3,6.99163234]
[1755881318365,10.95229073,195.43,195.34,6.99163234]
[1755881318366,0.65,195.37,195.34,6.99163234]
[1755881318567,8.95926253,195.35,195.34,6.99163234]
[1755881318746,12.71886795,195.35,195.33,6.99163234]
[1755881318947,67.84,195.36,195.2,26.0]
[1755881318948,26.0,195.36,195.35,6.99163234]
[1755881319257,8.67493939,195.36,195.35,6.99163234]
[1755881319455,50.51493939,195.36,195.35,6.99163234]
[1755881319838,2.67573349,195.4,195.36,6.99163234]
[1755881320042,8.67493939,195.38,195.36,6.99163234]
[1755881320271,8.67493939,195.37,195.36,6.99163234]
[1755881320463,54.2781648,195.37,195.36,6.99163234]
[1755881320657,50.51493939,195.37,195.36,6.99163234]
[1755881320858,54.56148915,195.37,195.36,6.99163234]
[1755881321169,0.28432314,195.36,195.32,6.99163234]
[1755881321373,0.28432314,195.32,195.3,6.99163234]
[1755881321541,0.28432314,195.32,195.27,0.66]
[1755881321542,4.04794356,195.32,195.31,6.99163234]
[1755881321743,45.88794356,195.32,195.31,6.99163234]
[1755881322057,3.76362042,195.32,195.31,7.65163234]
[1755881322253,41.84,195.32,195.31,7.65163234]
[1755881322457,45.60452745,195.32,195.31,7.65163234]
[1755881322654,50.51493939,195.32,195.31,6.99163234]
[1755881322858,54.27981232,195.32,195.31,6.99163234]
[1755881323566,45.60487293,195.32,195.31,6.83779267]
[1755881323769,50.51493939,195.32,195.31,7.49779267]
[1755881323972,54.28183325,195.32,195.31,7.49779267]
[1755881324154,56.93774573,195.32,195.31,7.49779267]
[1755881324766,53.17085187,195.32,195.31,7.49779267]
[1755881326056,44.49591248,195.32,195.31,7.49779267]
[1755881326377,56.93918921,195.32,195.31,6.83779267]
[1755881326750,56.93918921,195.32,195.3,6.83779267]
[1755881326751,57.58918921,195.32,195.3,6.83779267]
[1755881327056,0.28432314,195.3,195.29,0.03]
[1755881327263,45.89522741,195.3,195.29,0.03]
[1755881327574,54.5701668,195.3,195.29,0.03]
[1755881327795,54.5701668,195.3,195.23,0.72]
[1755881327796,0.28432314,195.27,195.26,6.83779267]
[1755881327951,45.89522741,195.27,195.26,6.83779267]
[1755881328561,54.5701668,195.27,195.26,6.83779267]
[1755881328764,3.77090427,195.27,195.26,7.55779267]
[1755881328987,41.84,195.27,195.26,6.83779267]
[1755881329200,54.28584366,195.27,195.26,6.83779267]
[1755881329495,54.5701668,195.27,195.26,6.83779267]
[1755881330258,54.28584366,195.27,195.26,6.83779267]
[1755881331071,45.61090427,195.27,195.26,6.83779267]
[1755881331563,54.28584366,195.27,195.26,6.83779267]
[1755881331963,45.61090427,195.27,195.26,6.83779267]
[1755881332264,54.28584366,195.27,195.26,6.83779267]
[1755881333494,45.61090427,195.27,195.26,6.6839052]
[1755881333786,2.65591248,195.32,195.31,6.6839052]
[1755881333983,44.49591248,195.32,195.31,6.6839052]
[1755881334183,48.27610393,195.32,195.31,6.6839052]
[1755881334391,56.95104332,195.32,195.31,6.6839052]
[1755881334892,57.66104332,195.32,195.31,6.6839052]
[1755881335069,0.28432314,195.31,195.3,6.6839052]
[1755881335267,13.45273428,195.31,195.3,6.6839052]
[1755881335495,4.77779489,195.31,195.3,6.6839052]
[1755881335678,13.45273428,195.31,195.29,6.6839052]
[1755881335874,0.28432314,195.31,195.3,6.6839052]
[1755881336088,42.12432314,195.31,195.3,6.6839052]
[1755881336298,45.90882109,195.31,195.3,6.6839052]
[1755881336477,55.29376048,195.31,195.3,6.6839052]
[1755881336671,46.61882109,195.31,195.3,6.6839052]
[1755881336989,55.29376048,195.31,195.28,6.6839052]
[1755881337192,55.29376048,195.31,195.24,0.72]
[1755881337193,4.07061055,195.3,195.29,6.6839052]
[1755881337367,15.34981188,195.3,195.29,6.6839052]
[1755881337690,15.34953178,195.3,195.29,6.6839052]
[1755881337896,0.28432314,195.29,195.26,6.6839052]
[1755881338086,0.28432314,195.27,195.26,6.6839052]
[1755881338299,12.74554994,195.27,195.26,6.6839052]
[1755881338582,54.58554994,195.27,195.26,6.6839052]
[1755881339776,55.29554994,195.27,195.26,6.6839052]
[1755881340099,57.1904973,195.27,195.26,6.6839052]
[1755881340392,57.1904973,195.27,195.25,0.03]
[1755881340611,12.46746917,195.26,195.25,0.03]
[1755881340777,12.75179231,195.26,195.25,0.03]
[1755881340977,12.75177919,195.26,195.25,0.03]
[1755881341177,24.03312057,195.26,195.25,0.03]
[1755881341690,14.64818118,195.26,195.25,0.03]
[1755881341896,57.19818118,195.26,195.25,0.03]
[1755881342091,57.19818118,195.26,195.0,29.80649882]
[1755881342092,26.0,195.23,195.18,6.6839052]
[1755881342282,26.0,195.15,195.11,6.6839052]
[1755881342478,0.28432314,195.13,195.11,7.4039052]
[1755881342676,50.51493939,195.12,195.11,7.4039052]
[1755881342874,50.51493939,195.12,195.11,6.6839052]
[1755881343086,8.67493939,195.14,195.12,6.6839052]
[1755881343402,61.97103419,195.26,195.17,6.6839052]
[1755881343403,8.95926253,195.18,195.17,6.6839052]
[1755881343703,45.92037228,195.18,195.17,7.2499304]
[1755881343873,50.79926253,195.18,195.17,6.5299304]
[1755881344079,54.59470122,195.18,195.17,6.5299304]
[1755881344275,12.47037808,195.18,195.17,7.2499304]
[1755881344481,12.47037808,195.18,195.17,6.5299304]
[1755881344482,48.30892269,195.18,195.17,6.5299304]
[1755881344677,2.67443825,195.18,195.17,7.2499304]
[1755881344923,44.51443825,195.18,195.17,7.2499304]
[1755881345210,44.51443825,195.18,195.17,15.92486979]
[1755881345710,44.51443825,195.18,195.17,7.2499304]
[1755881345908,2.67443825,195.18,195.17,7.2499304]
[1755881346109,44.51443825,195.18,195.17,15.92486979]
[1755881346281,44.51443825,195.18,195.17,7.2499304]
[1755881346594,44.51443825,195.18,195.17,15.92486979]
[1755881347012,44.51443825,195.18,195.17,7.2499304]
[1755881347390,44.51443825,195.18,195.17,6.5299304]
[1755881347596,44.51443825,195.18,195.17,7.2499304]
[1755881348013,44.51443825,195.18,195.17,15.92486979]
[1755881348190,44.51443825,195.18,195.17,7.2499304]
[1755881349499,44.51443825,195.18,195.17,6.5299304]
[1755881349879,57.69629677,195.18,195.17,6.5299304]
[1755881350281,15.14629677,195.18,195.17,6.5299304]
[1755881350482,48.31135738,195.18,195.17,7.2499304]
[1755881350707,2.67443825,195.18,195.17,15.92486979]
[1755881350883,44.53443825,195.18,195.17,7.2499304]
[1755881352081,53.91937764,195.18,195.16,6.5299304]
[1755881352287,53.91937764,195.18,195.14,6.5299304]
[1755881352288,6.52047414,195.17,195.14,6.5299304]
[1755881352581,44.53443825,195.18,195.14,6.5299304]
[1755881352582,5.81047414,195.15,195.14,6.5299304]
[1755881352887,2.67443825,195.18,195.17,6.5299304]
[1755881353192,2.67443825,195.18,195.12,5.526151]
[1755881353193,52.9540687,195.18,195.14,6.5299304]
[1755881353404,0.28432314,195.16,195.15,6.5299304]
[1755881353706,0.28432314,195.15,195.14,6.5299304]
[1755881353907,4.08322642,195.15,195.14,6.5299304]
[1755881354114,45.94322642,195.15,195.14,6.5299304]
[1755881354494,54.64918766,195.15,195.14,6.5299304]
[1755881354810,54.64918766,195.15,195.13,0.03]
[1755881354811,54.64918766,195.15,195.13,6.5599304]
[1755881355109,54.64918766,195.15,195.13,0.03]
[1755881355110,13.49918766,195.14,195.13,0.03]
[1755881355332,6.68742041,195.14,195.13,6.5599304]
[1755881355493,26.0,195.15,195.13,6.5599304]
[1755881355699,50.64596124,195.14,195.13,6.5599304]
[1755881355897,45.7336404,195.14,195.13,6.5599304]
[1755881356101,0.15398604,195.17,195.16,6.5299304]
[1755881356410,54.59284829,195.17,195.16,6.5299304]
[1755881356613,54.59284829,195.17,195.16,7.2499304]
[1755881356614,0.15398604,195.17,195.16,7.2499304]
[1755881356786,50.83994728,195.17,195.16,7.2499304]
[1755881356983,50.83994728,195.17,195.16,6.5299304]
[1755881357186,42.13398604,195.17,195.16,6.5299304]
[1755881357384,0.15398604,195.17,195.16,6.5299304]
[1755881357613,50.83994728,195.17,195.16,6.5299304]
[1755881358197,0.15398604,195.17,195.16,15.92589164]
[1755881358404,42.11398604,195.17,195.16,15.92589164]
[1755881358789,42.11398604,195.17,195.16,7.2199304]
[1755881359084,41.96,195.17,195.16,7.2199304]
[1755881359285,41.96,195.17,195.16,15.92589164]
[1755881359485,34.70596124,195.22,195.2,6.5299304]
[1755881359690,45.73699584,195.21,195.2,6.5299304]
[1755881360113,54.44295708,195.21,195.2,6.5299304]
[1755881360393,0.28432314,195.2,195.19,6.5299304]
[1755881360610,13.45728022,195.2,195.19,6.5299304]
[1755881360912,4.08131898,195.2,195.19,6.5299304]
[1755881361219,42.22432314,195.21,195.2,6.5299304]
[1755881361394,46.02231373,195.21,195.2,6.5299304]
[1755881361594,46.69231373,195.21,195.2,6.5299304]
[1755881361996,0.28432314,195.2,195.19,6.5299304]
[1755881362191,0.28432314,195.2,195.18,6.5299304]
[1755881362192,15.35766182,195.2,195.18,6.5299304]
[1755881362395,26.0,195.17,195.16,6.5299304]
[1755881362597,81.35827497,195.17,195.16,6.5299304]
[1755881362835,80.68827497,195.17,195.16,6.5299304]
[1755881363014,71.98231373,195.17,195.16,6.5299304]
[1755881363223,80.68827497,195.17,195.16,6.5299304]
[1755881363518,38.78827497,195.17,195.16,6.5299304]
[1755881363812,80.68827497,195.17,195.16,6.5299304]
[1755881364022,3.79799059,195.17,195.16,7.2199304]
[1755881364211,41.9,195.17,195.16,15.92589164]
[1755881364515,8.99028438,195.21,195.2,6.5299304]
[1755881364719,4.15011865,195.23,195.2,7.2199304]
[1755881364925,8.70596124,195.24,195.22,6.5299304]
[1755881365100,54.40494051,195.23,195.22,6.5299304]
[1755881365499,54.68926365,195.23,195.22,6.5299304]
[1755881365705,45.98330241,195.23,195.22,6.5299304]
[1755881365900,55.35926365,195.23,195.22,6.5299304]
[1755881366100,57.2589255,195.23,195.22,6.5299304]
[1755881366322,26.0,195.2,195.15,0.03]
[1755881366523,8.70596124,195.16,195.15,0.03]
[1755881366726,54.40494051,195.16,195.15,0.03]
[1755881366896,54.40477955,195.16,195.15,6.5599304]
[1755881367096,54.40477955,195.16,195.15,0.03]
[1755881367398,54.40477955,195.16,195.15,6.5599304]
[1755881367592,3.79881831,195.16,195.15,6.76803528]
[1755881367797,8.70596124,195.2,195.19,6.07803528]
[1755881367991,54.38527337,195.2,195.19,6.07803528]
[1755881368215,3.79931213,195.2,195.19,6.76803528]
[1755881368416,13.59559401,195.28,195.21,6.07803528]
[1755881368732,0.28432314,195.22,195.21,6.07803528]
[1755881368931,47.9065349,195.22,195.21,6.07803528]
[1755881369800,0.06,195.21,195.2,6.07803528]